fUSD/lending_fUSD_20260105
["ID","MTS","AMOUNT","RATE_DAILY","PERIOD"]
[400469863,1767610158196,-789.24879611,0.00015516,2]
[400469864,1767610165111,-410.75120389,0.00015516,2]
[400469865,1767610165133,-3820.23,0.00015517,2]
[400469866,1767610165157,-210.09,0.0001553,3]
[400469867,1767610165179,-200.0,0.00015551,2]
[400469868,1767610165203,-229.13,0.00015626,2]
[400469869,1767610165227,-159.41,0.00015831,2]
[400469870,1767610165248,-166.66,0.00015859,2]
[400469871,1767610165269,-151.0,0.00016014,2]
[400469872,1767610165290,-151.0,0.00016014,2]
[400469873,1767610165312,-151.0,0.00016017,2]
[400469874,1767610165336,-151.0,0.00016017,2]
[400469875,1767610165357,-300.0,0.00016027,2]
[400469876,1767610165378,-151.0,0.00016042,2]
[400469877,1767610165399,-151.0,0.00016042,2]
[400469878,1767610165419,-14.80838811,0.00016129,2]
[400469883,1767610231592,-4516.27,0.00015537,2]
[400469884,1767610231614,-250.0,0.00015832,2]
[400469885,1767610231623,-195.0,0.00015832,2]
[400469886,1767610231634,-253.0,0.00016128,2]
[400469887,1767610231644,-300.0,0.00016128,2]
[400469888,1767610231655,-1200.0,0.00016128,2]
[400469889,1767610231668,-285.0,0.00016128,2]
[400469890,1767610231677,-8138.59785921,0.00016129,2]
[400469891,1767610231689,-1110.51759736,0.00016129,2]
[400469892,1767610231701,-754.66632813,0.00016129,2]
[400469893,1767610231715,-932.31905122,0.00016129,2]
[400469894,1767610231726,-405.05,0.00016129,2]
[400469895,1767610231740,-1727.40362359,0.00016129,2]
[400469898,1767610231770,-2146.54603112,0.00016129,2]
[400469900,1767610231779,-151.0,0.0001616,2]
[400469902,1767610231787,-500.0,0.00016164,2]
[400469904,1767610231797,-151.0,0.00016169,2]
[400469906,1767610231806,-151.0,0.00016169,2]
[400469908,1767610231816,-151.0,0.00016173,2]
[400469910,1767610231825,-151.0,0.00016173,2]
[400469912,1767610231834,-151.0,0.00016175,2]
[400469914,1767610231843,-151.0,0.00016175,2]
[400469916,1767610231852,-1000.0,0.000162,2]
[400469918,1767610231861,-500.0,0.00016219,2]
[400469920,1767610231871,-500.0,0.00016274,2]
[400469922,1767610231880,-500.0,0.00016274,2]
[400469924,1767610231889,-500.0,0.00016328,2]
[400469926,1767610231898,-1446.30065033,0.00016335,2]
[400469928,1767610231911,-371.3259998,0.00016335,2]
[400470167,1767610237348,-151.0,0.0001616,2]
[400470168,1767610237358,-2417.91334987,0.00016335,2]
[400470169,1767610237368,-597.15348567,0.00016336,2]
[400470170,1767610237379,-1312.84651433,0.00016336,2]
[400470171,1767610237388,-550.0,0.00016336,2]
[400470172,1767610237398,-3100.1639756,0.00016338,2]
[400470173,1767610237407,-1910.0,0.0001634,2]
[400470174,1767610237418,-465.91415831,0.00016383,2]
[400470175,1767610237427,-4508.27,0.00016419,2]
[400470176,1767610237439,-212.92203508,0.00016428,2]
[400470177,1767610237449,-1599.74,0.00016438,2]
[400470178,1767610237458,-500.0,0.00016438,2]
[400470179,1767610237467,-500.0,0.00016438,2]
[400470180,1767610237476,-500.0,0.00016438,2]
[400470181,1767610237485,-500.0,0.00016438,2]
[400470182,1767610237494,-500.0,0.00016438,2]
[400470183,1767610237504,-500.0,0.00016438,2]
[400470184,1767610237514,-500.0,0.00016438,2]
[400470185,1767610237523,-500.0,0.00016438,2]
[400470186,1767610237534,-500.0,0.00016438,2]
[400470187,1767610237544,-500.0,0.00016438,2]
[400470188,1767610237555,-500.0,0.00016438,2]
[400470189,1767610237567,-500.0,0.00016438,2]
[400470190,1767610237580,-500.0,0.00016438,2]
[400470191,1767610237590,-500.0,0.00016438,2]
[400470192,1767610237599,-500.0,0.00016438,2]
[400470193,1767610237608,-500.0,0.00016438,2]
[400470194,1767610237618,-500.0,0.00016438,2]
[400470195,1767610237628,-500.0,0.00016438,2]
[400470196,1767610237638,-500.0,0.00016438,2]
[400470197,1767610237647,-500.0,0.00016438,2]
[400470198,1767610237659,-500.0,0.00016438,2]
[400470200,1767610237668,-500.0,0.00016438,2]
[400470202,1767610237678,-500.0,0.00016438,2]
[400470203,1767610237687,-500.0,0.00016438,2]
[400470204,1767610237697,-337.21821222,0.00016438,2]
[400470205,1767610237707,-500.0,0.00016438,2]
[400470206,1767610237716,-500.0,0.00016438,2]
[400470208,1767610237725,-500.0,0.00016438,2]
[400470209,1767610237736,-500.0,0.00016438,2]
[400470210,1767610237746,-1910.0,0.00016456,2]
[400470211,1767610237756,-152.04,0.00016457,2]
[400470212,1767610237765,-319.43,0.00016458,2]
[400470213,1767610237779,-150.0,0.00016463,2]
[400470214,1767610237788,-999.0,0.00016485,3]
[400470215,1767610237799,-229.13,0.00016494,2]
[400470216,1767610237809,-200.0,0.00016601,2]
[400470217,1767610237818,-500.0,0.00016603,2]
[400470218,1767610237827,-5546.50835293,0.00016667,2]
[400470219,1767610237840,-2500.0,0.00016667,2]
[400470220,1767610237851,-500.0,0.00016697,2]
[400470221,1767610237860,-500.0,0.00016697,2]
[400470222,1767610237870,-500.0,0.00016697,2]
[400470223,1767610237880,-1599.74,0.00016712,2]
[400470224,1767610237890,-506.85863405,0.00016712,2]
[400470225,1767610237900,-166.66,0.00016731,2]
[400470226,1767610237910,-1910.0,0.00016738,2]
[400470227,1767610237920,-183.0,0.00016742,2]
[400470228,1767610237930,-183.0,0.00016747,2]
[400470229,1767610237939,-287.51026001,0.00016766,2]
[400470230,1767610237949,-294.61095985,0.00016766,2]
[400470231,1767610237969,-154.98008343,0.00016766,2]
[400470232,1767610237984,-24857.0634661,0.00016767,2]
[400470233,1767610237994,-3146.2265885,0.00016767,2]
[400470234,1767610238003,-15532.45117541,0.00016767,2]
[400470235,1767610238016,-3708.5872461,0.00016767,2]
[400470237,1767610239496,-343.07321058,0.00016767,2]
[400470244,1767610244042,-69430.84017411,0.00016767,2]
[400470245,1767610244056,-10040.2078584,0.00016767,2]
[400470246,1767610244068,-152.930759,0.00016767,2]
[400470247,1767610244077,-151.0,0.00016767,2]
[400470248,1767610244087,-151.0,0.00016767,2]
[400470249,1767610244097,-38218.6933478,0.00016767,2]
[400470250,1767610244107,-986.3440681,0.00016767,2]
[400470251,1767610244121,-151.0,0.00016767,2]
[400470252,1767610244130,-151.0,0.00016767,2]
[400470253,1767610244143,-151.0,0.00016767,2]
[400470254,1767610244154,-151.0,0.00016767,2]
[400470255,1767610244165,-151.0,0.00016767,2]
[400470256,1767610244174,-1910.0,0.00016769,2]
[400470257,1767610244183,-5546.5083529,0.00016804,2]
[400470258,1767610244193,-1910.0,0.00016823,2]
[400470259,1767610244204,-168.0,0.00016834,2]
[400470260,1767610244214,-1360.6980149,0.00016837,2]
[400470261,1767610244223,-574.12855637,0.00016893,2]
[400470262,1767610244234,-500.0,0.00016898,2]
[400470263,1767610244243,-500.0,0.00016898,2]
[400470264,1767610244253,-283.51547018,0.00016898,2]
[400470265,1767610244262,-159.317106,0.00016922,2]
[400470266,1767610244272,-210.425724,0.00016922,2]
[400470267,1767610244289,-489.36,0.00016931,2]
[400470268,1767610244298,-5546.5083529,0.00016941,2]
[400470269,1767610244307,-250.0,0.00016944,2]
[400470270,1767610244316,-500.0,0.00016951,2]
[400470271,1767610244325,-250.0,0.00016973,2]
[400470272,1767610244335,-600.0,0.00016973,2]
[400470273,1767610244344,-600.0,0.00016973,2]
[400470274,1767610244353,-600.0,0.00016973,2]
[400470275,1767610244362,-600.0,0.00016973,2]
[400470276,1767610244371,-620.97403321,0.00016973,2]
[400470277,1767610244380,-153.68743037,0.00016973,2]
[400470278,1767610244390,-5000.0,0.00016973,2]
[400470279,1767610244399,-1655.36790437,0.00016973,2]
[400470280,1767610244408,-2500.0,0.00016973,2]
[400470281,1767610244418,-300.0,0.00016973,2]
[400470282,1767610244427,-300.0,0.00016973,2]
[400470283,1767610244436,-152.05659093,0.00016973,2]
[400470284,1767610244445,-195.0,0.00016973,2]
[400470285,1767610244454,-300.0,0.00016986,3]
[400470286,1767610244463,-300.0,0.00016986,3]
[400470287,1767610244480,-300.0,0.00016986,3]
[400470288,1767610244496,-300.0,0.00016986,3]
[400470289,1767610244505,-300.0,0.00016986,3]
[400470290,1767610244514,-151.0,0.00016986,2]
[400470291,1767610244523,-1599.74,0.00016986,2]
[400470292,1767610244532,-151.0,0.00016986,2]
[400470293,1767610244541,-44322.64,0.00016986,2]
[400470294,1767610244550,-250.0,0.00017,2]
[400470295,1767610244559,-231.5115,0.0001703,2]
[400470296,1767610244569,-10056.49228051,0.00017045,2]
[400470297,1767610244578,-183.0,0.00017069,2]
[400470298,1767610244586,-190.0,0.00017071,2]
[400470299,1767610244596,-5546.5083529,0.00017078,2]
[400470300,1767610244606,-250.0,0.00017091,2]
[400470301,1767610244615,-195.0,0.00017091,2]
[400470302,1767610244624,-505.0,0.00017096,2]
[400470303,1767610244634,-183.0,0.00017107,2]
[400470304,1767610244643,-187.551097,0.00017178,2]
[400470305,1767610244652,-30207.88340756,0.00017178,2]
[400470306,1767610244666,-5546.5083529,0.00017215,2]
[400470307,1767610244675,-3171.1538809,0.00017217,2]
[400470308,1767610244685,-151.0,0.00017217,2]
[400470309,1767610244695,-500.0,0.00017226,2]
[400470310,1767610244706,-1599.74,0.0001726,2]
[400470311,1767610244715,-190.0,0.00017317,2]
[400470312,1767610244725,-190.0,0.00017333,2]
[400470313,1767610244735,-5546.5083529,0.00017352,2]
[400470314,1767610244743,-610.968,0.00017356,2]
[400470315,1767610244753,-229.13,0.00017362,2]
[400470316,1767610244762,-1000.0,0.000174,2]
[400470317,1767610244770,-168.0,0.00017411,2]
[400470318,1767610244779,-595.37131296,0.00017441,2]
[400470319,1767610244788,-288.0,0.00017446,2]
[400470320,1767610244797,-932.80879,0.0001745,2]
[400470321,1767610244806,-932.80879,0.0001745,2]
[400470322,1767610244815,-932.80879,0.0001745,2]
[400470323,1767610244824,-932.80878,0.0001745,2]
[400470324,1767610244833,-5546.5083529,0.00017489,2]
[400470325,1767610244843,-1599.74,0.00017534,2]
[400470326,1767610244852,-613.0,0.00017557,2]
[400470327,1767610244861,-190.0,0.00017561,2]
[400470328,1767610244871,-151.0,0.00017567,2]
[400470329,1767610244880,-1818.0,0.00017567,2]
[400470330,1767610244890,-613.0,0.00017568,2]
[400470331,1767610244899,-613.0,0.00017568,2]
[400470332,1767610244908,-166.66,0.00017603,2]
[400470333,1767610244917,-5546.5083529,0.00017626,2]
[400470334,1767610244926,-151.0,0.00017628,2]
[400470335,1767610244936,-151.0,0.00017628,2]
[400470336,1767610244945,-1000.0,0.00017628,2]
[400470337,1767610244955,-803.51847795,0.00017628,2]
[400470338,1767610244964,-932.80878,0.00017628,2]
[400470339,1767610244973,-932.80879,0.00017628,2]
[400470340,1767610244983,-932.80878,0.00017628,2]
[400470341,1767610244992,-932.80879,0.00017628,2]
[400470342,1767610245002,-932.80879,0.00017628,2]
[400470343,1767610245011,-932.80879,0.00017628,2]
[400470344,1767610245022,-420.0,0.00017631,2]
[400470345,1767610245031,-190.0,0.00017632,2]
[400470346,1767610245040,-544.54338031,0.0001764,2]
[400470347,1767610245049,-160.2054144,0.00017643,2]
[400470348,1767610245059,-168.0,0.00017683,2]
[400470349,1767610245068,-384.27,0.00017703,2]
[400470350,1767610245077,-1680.0,0.00017719,2]
[400470351,1767610245087,-3943.36,0.00017728,2]
[400470352,1767610245096,-8084.5,0.00017728,2]
[400470353,1767610245106,-9903.48,0.00017728,2]
[400470354,1767610245115,-999.99,0.00017728,2]
[400470355,1767610245124,-5466.35262429,0.00017728,2]
[400470357,1767610245436,-4533.63737571,0.00017728,2]
[400470358,1767610245487,-4999.99,0.00017728,2]
[400470359,1767610245499,-9999.99,0.00017728,2]
[400470360,1767610245510,-150.99,0.00017728,2]
[400470361,1767610245519,-503.59,0.00017728,2]
[400470362,1767610245531,-150.99,0.00017728,2]
[400470363,1767610245541,-6100.83,0.00017728,2]
[400470364,1767610245551,-524.73,0.00017728,5]
[400470365,1767610245562,-166.67,0.00017734,2]
[400470366,1767610245572,-300.0,0.00017736,2]
[400470367,1767610245582,-489.36,0.00017737,2]
[400470368,1767610245591,-1000.0,0.00017744,2]
[400470369,1767610245600,-300.0,0.0001775,2]
[400470370,1767610245609,-300.0,0.00017758,2]
[400470371,1767610245618,-5546.5083529,0.00017763,2]
[400470372,1767610245628,-152.53735496,0.00017774,2]
[400470373,1767610245637,-1404.0,0.00017776,2]
[400470374,1767610245647,-1364.493,0.00017776,2]
[400470375,1767610245661,-614.0,0.00017776,2]
[400470376,1767610245673,-3476.321,0.00017776,2]
[400470377,1767610245683,-1266.0,0.00017776,2]
[400470378,1767610245694,-433.0,0.00017776,2]
[400470379,1767610245705,-913.0,0.00017776,2]
[400470380,1767610245714,-1200.0,0.00017776,2]
[400470381,1767610245726,-691.734,0.00017776,2]
[400470382,1767610245738,-2435.0,0.00017776,2]
[400470383,1767610245747,-150.0,0.00017776,2]
[400470384,1767610245758,-6548.0,0.00017776,2]
[400470385,1767610245767,-300.0,0.00017802,2]
[400470386,1767610245777,-300.0,0.00017804,2]
[400470387,1767610245786,-500.0,0.00017808,2]
[400470388,1767610245795,-506.98336707,0.00017808,2]
[400470389,1767610245807,-300.0,0.00017808,2]
[400470390,1767610245817,-300.0,0.00017808,2]
[400470391,1767610245826,-1599.74,0.00017808,2]
[400470392,1767610245836,-500.0,0.00017811,2]
[400470393,1767610245846,-500.0,0.00017811,2]
[400470394,1767610245855,-500.0,0.00017811,2]
[400470395,1767610245866,-521.20759762,0.00017811,2]
[400470396,1767610245875,-509.59416457,0.00017811,2]
[400470397,1767610245885,-300.0,0.00017824,2]
[400470398,1767610245894,-300.0,0.00017829,2]
[400470399,1767610245904,-300.0,0.00017843,2]
[400470400,1767610245913,-300.0,0.00017844,2]
[400470401,1767610245922,-300.0,0.00017855,2]
[400470402,1767610245932,-310.209,0.00017856,2]
[400470403,1767610245941,-167.12180959,0.00017856,2]
[400470404,1767610245951,-200.0,0.00017856,2]
[400470405,1767610245961,-1000.0,0.00017858,2]
[400470406,1767610245971,-300.0,0.00017862,2]
[400470407,1767610245982,-302.61230238,0.00017863,2]
[400470408,1767610245992,-300.0,0.0001787,2]
[400470409,1767610246002,-25000.0,0.00017874,3]
[400470410,1767610246011,-150.0,0.00017877,2]
[400470411,1767610246021,-25000.0,0.00017882,3]
[400470412,1767610246030,-300.0,0.00017889,2]
[400470413,1767610246040,-25000.0,0.00017891,3]
[400470414,1767610246050,-300.0,0.00017892,2]
[400470415,1767610246059,-300.0,0.00017896,2]
[400470416,1767610246068,-500.0,0.00017899,2]
[400470417,1767610246078,-15408.66448659,0.000179,3]
[400470418,1767610246087,-25000.0,0.000179,3]
[400470419,1767610246097,-3735.406,0.000179,2]
[400470420,1767610246108,-1046.66566694,0.000179,2]
[400470421,1767610246117,-1483.96733863,0.000179,2]
[400470422,1767610246126,-373.56108363,0.000179,2]
[400470423,1767610246135,-306.0,0.000179,2]
[400470424,1767610246144,-5546.5083529,0.000179,2]
[400470425,1767610246153,-300.0,0.00017908,2]
[400470426,1767610246162,-300.0,0.0001791,2]
[400470427,1767610246171,-637.355058,0.00017928,2]
[400470428,1767610246180,-300.0,0.00017931,2]
[400470429,1767610246190,-320.67232886,0.00017941,2]
[400470430,1767610246200,-228.45751928,0.00017973,2]
[400470431,1767610246211,-150.0,0.00017973,2]
[400470432,1767610246220,-300.0,0.00017981,2]
[400470433,1767610246229,-300.0,0.00017981,2]
[400470434,1767610246240,-168.0,0.00017981,2]
[400470435,1767610246249,-300.0,0.00017984,2]
[400470436,1767610246259,-500.0,0.00017987,2]
[400470437,1767610246270,-617.40005154,0.00017989,2]
[400470438,1767610246281,-201.91382998,0.0001799,2]
[400470439,1767610246290,-201.91382998,0.0001799,2]
[400470440,1767610246299,-500.0,0.00017999,2]
[400470441,1767610246310,-500.0,0.00017999,2]
[400470442,1767610246319,-500.0,0.00017999,2]
[400470443,1767610246328,-500.0,0.00017999,2]
[400470444,1767610246337,-500.0,0.00017999,2]
[400470445,1767610246348,-500.0,0.00017999,2]
[400470446,1767610246358,-500.0,0.00017999,2]
[400470447,1767610246368,-500.0,0.00017999,2]
[400470448,1767610246377,-208.06812993,0.00017999,2]
[400470449,1767610246386,-500.0,0.00017999,2]
[400470450,1767610246395,-500.0,0.00017999,2]
[400470451,1767610246407,-500.0,0.00017999,2]
[400470452,1767610246418,-500.0,0.00017999,2]
[400470453,1767610246427,-400.0,0.00017999,2]
[400470454,1767610246436,-514.2468323,0.00017999,2]
[400470455,1767610246446,-500.0,0.00017999,2]
[400470456,1767610246455,-500.0,0.00017999,2]
[400470457,1767610246465,-500.0,0.00017999,2]
[400470458,1767610246474,-500.0,0.00017999,2]
[400470459,1767610246484,-500.0,0.00017999,2]
[400470460,1767610246493,-500.0,0.00017999,2]
[400470461,1767610246502,-500.0,0.00017999,2]
[400470462,1767610246511,-500.0,0.00017999,2]
[400470463,1767610246520,-476.4585465,0.00017999,2]
[400470464,1767610246530,-621.72362606,0.00017999,2]
[400470465,1767610246539,-550.60903699,0.00017999,2]
[400470466,1767610246548,-500.0,0.00017999,2]
[400470467,1767610246557,-300.0,0.00017999,2]
[400470468,1767610246566,-378284.81607968,0.00018,2]
[400470469,1767610246579,-9232.90215938,0.00018,2]
[400470470,1767610246737,-303.4911735,0.000179,2]
[400470471,1767610246746,-856.4588265,0.00018,2]
[400470472,1767610511163,150.0,1e-05,2]
[400470474,1767610666152,150.0,1e-05,2]
[400470479,1767610718394,230.56,0.00024975,120]
[400470487,1767611145207,153.67,8.184e-05,2]
[400470488,1767611145401,153.67,9.207e-05,2]
[400470489,1767611145596,153.67,0.0001023,2]
[400470490,1767611145806,153.67,0.00011253,2]
[400470491,1767611146003,153.67,0.00012276,2]
[400470492,1767611146214,153.67,0.00013299,2]
[400470493,1767611146389,153.67,0.00014322,2]
[400470497,1767611215121,-151.93289866,0.00015345,2]
[400470498,1767611251077,-1.73710134,0.00015345,2]
[400470499,1767611251099,-284.0,0.00016023,2]
[400470500,1767611251119,-263.1,0.00016023,2]
[400470501,1767611251142,-195.0,0.00016023,2]
[400470502,1767611251162,-165.40813569,0.00016023,2]
[400470503,1767611251183,-166.66,0.00016023,2]
[400470504,1767611251207,-6153.1796,0.00016029,2]
[400470505,1767611251228,-151.0,0.00016262,2]
[400470506,1767611251247,-151.0,0.00016262,2]
[400470507,1767611251267,-151.0,0.00016262,2]
[400470508,1767611251286,-151.0,0.00016264,2]
[400470509,1767611251306,-151.0,0.00016265,2]
[400470510,1767611251326,-151.0,0.00016265,2]
[400470511,1767611251350,-166.66,0.00016361,2]
[400470512,1767611251372,-300.0,0.00016366,2]
[400470513,1767611251392,-999.0,0.00016367,3]
[400470514,1767611251412,-153.67,0.00016368,2]
[400470515,1767611251433,-188.22800434,0.00016437,2]
[400470517,1767611380738,-151.0,0.0001635,2]
[400470518,1767611380762,-151.0,0.0001635,2]
[400470533,1767611431634,-151.0,0.0001636,2]
[400470534,1767611431643,-287.0,0.0001636,2]
[400470535,1767611431654,-589.11678612,0.00016437,2]
[400470536,1767611431687,-610.88321388,0.00016437,2]
[400470537,1767611431697,-142.65948399,0.00016438,2]
[400470548,1767611437586,-6796.09051601,0.00016438,2]
[400470549,1767611437596,-300.0,0.0001664,2]
[400470550,1767611437605,-300.0,0.0001664,2]
[400470551,1767611437614,-2420.95726712,0.00016641,2]
[400470552,1767611437624,-517.03524661,0.00016642,2]
[400470553,1767611437634,-230.56,0.0001665,2]
[400470554,1767611437643,-166.66,0.00016698,2]
[400470555,1767611437652,-24687.5937,0.00016886,2]
[400470556,1767611437662,-19.80499924,0.0001692,2]
[400470557,1767611437677,-520.52562746,0.0001692,2]
[400470558,1767611437687,-500.0,0.0001692,2]
[400470559,1767611437697,-500.0,0.0001692,2]
[400470560,1767611437706,-500.0,0.0001692,2]
[400470561,1767611437715,-500.0,0.0001692,2]
[400470562,1767611437724,-500.0,0.0001692,2]
[400470563,1767611437734,-559.31291562,0.0001692,2]
[400470564,1767611437743,-500.0,0.0001692,2]
[400470565,1767611437752,-500.0,0.0001692,2]
[400470566,1767611437762,-500.0,0.0001692,2]
[400470567,1767611437771,-500.0,0.0001692,2]
[400470568,1767611437780,-500.0,0.0001692,2]
[400470569,1767611437789,-500.0,0.0001692,2]
[400470570,1767611437798,-500.0,0.0001692,2]
[400470572,1767611437808,-500.0,0.0001692,2]
[400470574,1767611437817,-450.0,0.0001692,2]
[400470575,1767611437827,-500.0,0.0001692,2]
[400470576,1767611437835,-500.0,0.0001692,2]
[400470577,1767611437844,-368.87368452,0.0001692,2]
[400470578,1767611437854,-500.0,0.0001692,2]
[400470579,1767611437863,-500.0,0.0001692,2]
[400470580,1767611437873,-550.0,0.0001692,2]
[400470581,1767611437883,-801.98343559,0.00016921,2]
[400470616,1767611439736,-531.12656441,0.00016921,2]
[400470617,1767611439748,-2901.21641567,0.00016922,2]
[400470618,1767611439789,-20220.50358433,0.00016922,2]
[400470619,1767611439799,-9861.25169781,0.00016922,2]
[400470620,1767611439810,-138.73830219,0.00016922,2]
[400470621,1767611439819,-168.0,0.00016945,2]
[400470622,1767611439829,-100.35710594,0.00016976,2]
[400470623,1767611439840,-180.70774333,0.00016976,2]
[400470624,1767611439850,-566.82545417,0.00016976,2]
[400470625,1767611439866,-7.3031022,0.00016976,2]
[400470626,1767611439875,-250.0,0.00017,2]
[400470627,1767611439885,-166.66,0.00017035,2]
[400470628,1767611439895,-610.26689057,0.000171,2]
[400470641,1767611444245,-16.88143321,0.000171,2]
[400470642,1767611444256,-692.88167622,0.000171,2]
[400470643,1767611444266,-168.0,0.00017133,2]
[400470644,1767611444275,-151.0,0.00017137,2]
[400470645,1767611444284,-151.0,0.00017168,2]
[400470646,1767611444294,-37.11832378,0.00017168,2]
[400470651,1767611445568,-6.02903473,0.00017168,2]
[400470652,1767611445599,-107.85264149,0.00017168,2]
[400470653,1767611445609,-1333.11,0.00017195,2]
[400470654,1767611445618,-168.0,0.00017314,2]
[400470655,1767611445627,-168.0,0.00017319,2]
[400470656,1767611445636,-166.66,0.00017373,2]
[400470657,1767611445646,-1333.11,0.00017469,2]
[400470658,1767611445655,-168.0,0.00017497,2]
[400470659,1767611445664,-595.37131296,0.00017524,2]
[400470660,1767611445673,-168.0,0.00017583,2]
[400470661,1767611445683,-300.0,0.00017625,2]
[400470662,1767611445692,-195.0,0.00017625,2]
[400470663,1767611445701,-206.22767189,0.00017627,2]
[400470664,1767611445710,-201.257182,0.00017627,2]
[400470665,1767611445720,-28361.11011195,0.00017628,2]
[400470666,1767611445867,-186.39137222,0.00017628,2]
[400470667,1767611445879,-805.97723706,0.00017628,2]
[400470681,1767612427094,-3079.32832895,0.000162,5]
[400470689,1767612608702,4798.1037611,0.000153,2]
[400470701,1767612631905,-439.31811681,0.000153,2]
[400470718,1767612637795,-3226.99366608,0.000153,2]
[400470719,1767612637839,-2299.58445601,0.000153,2]
[400470720,1767612637848,-300.0,0.00015599,2]
[400470721,1767612637858,-1001.214672,0.00015599,2]
[400470722,1767612637902,-198.785328,0.00015599,2]
[400470723,1767612637912,-300.0,0.00015599,2]
[400470724,1767612637922,-150.1737687,0.00015899,4]
[400470725,1767612637931,-2444.83323628,0.000159,3]
[400470726,1767612637955,-3087.16676372,0.000159,3]
[400470727,1767612637964,-6318.33172744,0.00016,4]
[400470728,1767612637974,-1219.46,0.00016158,2]
[400470729,1767612637983,-1454.25231988,0.000162,5]
[400470779,1767612645317,-1788.27594066,0.000162,5]
[400470780,1767612645330,-5532.0,0.000165,5]
[400470781,1767612645341,-200.0,0.00016614,2]
[400470782,1767612645352,-193.61157153,0.00016647,2]
[400470783,1767612645363,-559.31291562,0.0001672,2]
[400470784,1767612645373,-500.0,0.0001672,2]
[400470785,1767612645383,-500.0,0.0001672,2]
[400470786,1767612645397,-500.0,0.0001672,2]
[400470787,1767612645408,-500.0,0.0001672,2]
[400470788,1767612645419,-500.0,0.0001672,2]
[400470789,1767612645431,-500.0,0.0001672,2]
[400470790,1767612645442,-500.0,0.0001672,2]
[400470791,1767612645455,-500.0,0.0001672,2]
[400470792,1767612645469,-500.0,0.0001672,2]
[400470793,1767612645480,-520.52562746,0.0001672,2]
[400470794,1767612645492,-500.0,0.0001672,2]
[400470795,1767612645504,-500.0,0.0001672,2]
[400470796,1767612645515,-500.0,0.0001672,2]
[400470798,1767612645527,-500.0,0.0001672,2]
[400470799,1767612645540,-500.0,0.0001672,2]
[400470800,1767612645554,-500.0,0.0001672,2]
[400470801,1767612645566,-368.87368452,0.0001672,2]
[400470802,1767612645578,-500.0,0.0001672,2]
[400470803,1767612645589,-500.0,0.0001672,2]
[400470804,1767612645601,-500.0,0.0001672,2]
[400470805,1767612645612,-500.0,0.0001672,2]
[400470806,1767612645623,-500.0,0.0001672,2]
[400470807,1767612645635,-500.0,0.0001672,2]
[400470808,1767612645646,-500.0,0.0001672,2]
[400470809,1767612645656,-500.0,0.0001672,2]
[400470810,1767612645667,-500.0,0.0001672,2]
[400470811,1767612645677,-500.0,0.0001672,2]
[400470812,1767612645687,-500.0,0.0001672,2]
[400470813,1767612645697,-500.0,0.0001672,2]
[400470814,1767612645710,-500.0,0.0001672,2]
[400470815,1767612645722,-500.0,0.0001672,2]
[400470816,1767612645734,-500.0,0.0001672,2]
[400470817,1767612645746,-500.0,0.0001672,2]
[400470818,1767612645757,-500.0,0.0001672,2]
[400470819,1767612645768,-500.0,0.0001672,2]
[400470820,1767612645782,-500.0,0.0001672,2]
[400470821,1767612645794,-500.0,0.0001672,2]